bitfinex-derivatives/quotes_BTCF0:USTF0_20251028
["timestamp","ask_amount","ask_price","bid_price","bid_amount"]
[1761659467181,0.32090232,115420.0,115400.0,0.3608]
[1761659467389,0.05795,115400.0,115390.0,0.4055]
[1761659467683,0.05795,115400.0,115390.0,0.41426646]
[1761659468384,0.37351,115420.0,115410.0,0.0467]
[1761659468385,0.05784,115420.0,115410.0,0.0467]
[1761659468581,0.04513,115420.0,115410.0,0.494155]
[1761659468780,0.04513,115420.0,115410.0,0.496755]
[1761659469182,0.63721232,115440.0,115410.0,0.496755]
[1761659469389,0.04513,115430.0,115420.0,0.4055]
[1761659471481,0.02266,115430.0,115420.0,0.5048175]
[1761659471684,0.05784,115440.0,115430.0,0.0447]
[1761659472797,0.05784,115440.0,115420.0,0.4075]
[1761659472798,0.04513,115430.0,115420.0,0.4075]
[1761659472981,0.31143232,115430.0,115420.0,0.02181]
[1761659473181,0.30883232,115430.0,115420.0,0.4055]
[1761659473375,0.30883232,115430.0,115420.0,0.0447]
[1761659473782,0.31143232,115430.0,115420.0,0.0447]
[1761659474086,0.05795,115420.0,115410.0,0.4055]
[1761659474289,0.05795,115420.0,115410.0,0.492155]
[1761659474482,0.04513,115420.0,115410.0,0.4055]
[1761659474991,0.05795,115420.0,115410.0,0.4055]
[1761659475491,0.32165232,115420.0,115410.0,0.4055]
[1761659475790,0.32165232,115420.0,115410.0,0.4095]
[1761659476182,0.32165232,115420.0,115410.0,0.0447]
[1761659476488,0.32165232,115420.0,115410.0,0.0467]
[1761659477885,0.32165232,115420.0,115410.0,0.4075]
[1761659478080,0.05795,115420.0,115410.0,0.4055]
[1761659478286,0.3608,115430.0,115410.0,0.494155]
[1761659478491,0.66963232,115430.0,115420.0,0.0447]
[1761659478786,0.04513,115430.0,115420.0,0.4055]
[1761659479387,0.30883232,115430.0,115420.0,0.4055]
[1761659480385,0.30883232,115430.0,115420.0,0.0447]
[1761659481294,0.04513,115430.0,115420.0,0.05737]
[1761659481689,0.04513,115430.0,115420.0,0.05937]
[1761659481890,0.31143232,115430.0,115420.0,0.02381]
[1761659482089,0.37351,115440.0,115430.0,0.13134]
[1761659482090,0.04513,115440.0,115430.0,0.13134]
[1761659482287,0.05784,115460.0,115450.0,0.0447]
[1761659482486,0.05784,115460.0,115450.0,0.492125]
[1761659482682,0.3608,115470.0,115450.0,0.492125]
[1761659482888,0.3608,115470.0,115460.0,0.1439875]
[1761659482889,0.04513,115470.0,115460.0,0.1439875]
[1761659483090,0.02266,115470.0,115460.0,0.1526164]
[1761659483692,0.06245,115480.0,115470.0,0.13131]
[1761659483890,0.04963,115480.0,115470.0,0.13391]
[1761659484090,0.04963,115480.0,115470.0,0.13131]
[1761659485997,0.05063,115480.0,115470.0,0.0447]
[1761659486500,0.06345,115480.0,115470.0,0.0447]
[1761659486699,0.32715232,115480.0,115470.0,0.0447]
[1761659486894,0.69055232,115480.0,115470.0,0.02181]
[1761659487101,0.04513,115470.0,115460.0,0.4921175]
[1761659487299,0.31143232,115470.0,115460.0,0.4055]
[1761659487496,0.05795,115460.0,115450.0,0.492125]
[1761659487801,0.04513,115460.0,115450.0,0.50103006]
[1761659488802,0.05899,115460.0,115450.0,0.4921249]
[1761659489298,0.05899,115460.0,115450.0,0.4085]
[1761659489496,0.06159,115460.0,115450.0,0.40763]
[1761659489698,0.05899,115460.0,115450.0,0.40763]
[1761659489905,0.05899,115460.0,115450.0,0.494255]
[1761659490208,0.04513,115460.0,115450.0,0.40763]
[1761659490396,0.04513,115460.0,115450.0,0.494255]
[1761659491093,0.04513,115460.0,115450.0,0.40763]
[1761659491300,0.05899,115460.0,115450.0,0.4942549]
[1761659491504,0.02266,115460.0,115450.0,0.4942549]
[1761659491702,0.06288,115480.0,115470.0,0.1297599]
[1761659491909,0.0045,115480.0,115470.0,0.4905599]
[1761659492299,0.0045,115480.0,115470.0,1.20778877]
[1761659493004,0.0055,115480.0,115470.0,1.20778877]
[1761659495606,0.0055,115480.0,115470.0,0.8539599]
[1761659496208,0.0055,115480.0,115470.0,0.8513599]
[1761659496609,0.0055,115480.0,115470.0,0.8539599]
[1761659497003,0.06492,115480.0,115470.0,0.8513599]
[1761659497210,0.0055,115480.0,115470.0,0.8539599]
[1761659497714,0.0055,115480.0,115470.0,0.8513599]
[1761659497912,0.0055,115480.0,115470.0,0.76475]
[1761659498114,0.0055,115480.0,115470.0,0.85136]
[1761659498715,0.05106,115480.0,115470.0,0.8513599]
[1761659498916,0.00250633,115480.0,115470.0,1.33444664]
[1761659499110,0.0045,115520.0,115510.0,0.04315]
[1761659499416,0.0045,115520.0,115510.0,0.40395]
[1761659499611,0.0045,115520.0,115510.0,0.40655]
[1761659499806,0.0045,115520.0,115510.0,0.49313]
[1761659500109,0.0045,115520.0,115510.0,0.40655]
[1761659500317,0.0045,115520.0,115510.0,0.85133]
[1761659500508,0.02725,115520.0,115510.0,0.85133]
[1761659500702,0.05006,115520.0,115510.0,0.77342637]
[1761659500919,0.02725,115520.0,115510.0,0.77342637]
[1761659501112,0.02725,115520.0,115510.0,0.86000637]
[1761659501308,0.0045,115520.0,115510.0,0.86000637]
[1761659501710,0.0075,115520.0,115510.0,0.86000637]
[1761659502206,0.05306,115520.0,115510.0,0.77342637]
[1761659502617,0.06952,115520.0,115510.0,0.40395]
[1761659502819,0.06692,115520.0,115510.0,0.40395]
[1761659503113,0.06952,115520.0,115510.0,0.40395]
[1761659503317,0.06692,115520.0,115510.0,0.40395]
[1761659503712,0.03661,115500.0,115490.0,0.04315]
[1761659503915,0.41324887,115500.0,115490.0,0.40395]
[1761659504219,0.05942,115500.0,115490.0,0.40395]
[1761659504420,0.06202,115500.0,115490.0,0.02113]
[1761659504617,0.41324887,115500.0,115490.0,0.04315]
[1761659504813,0.05942,115500.0,115490.0,0.40395]
[1761659505012,0.05942,115500.0,115490.0,0.40595]
[1761659505321,0.05942,115500.0,115490.0,0.04515]
[1761659505517,0.05942,115500.0,115490.0,0.40595]
[1761659505819,0.04556,115500.0,115490.0,0.40595]
[1761659507718,0.05942,115500.0,115490.0,0.40595]
[1761659508821,0.04556,115500.0,115490.0,0.40595]
[1761659510123,0.05942,115500.0,115490.0,0.40595]
[1761659514027,0.08397778,115500.0,115490.0,0.40595]
[1761659514634,0.08397778,115500.0,115490.0,0.492545]
[1761659514830,0.02455778,115500.0,115490.0,0.492545]
[1761659515338,0.04730778,115500.0,115490.0,0.492545]
[1761659515532,0.07011778,115500.0,115490.0,0.40595]
[1761659516535,0.07011778,115500.0,115490.0,0.492545]
[1761659516931,0.07011778,115500.0,115490.0,0.40595]
[1761659517736,0.08397778,115500.0,115490.0,0.40595]
[1761659519338,0.47062175,115500.0,115490.0,0.0463]
[1761659519546,0.82185062,115500.0,115490.0,0.0463]
[1761659519931,0.10722175,115500.0,115490.0,0.0463]
[1761659520133,0.09336175,115500.0,115490.0,0.0463]
[1761659520333,0.10722175,115500.0,115490.0,0.0463]
[1761659520546,0.10982175,115500.0,115490.0,0.0463]
[1761659520735,0.46105062,115500.0,115490.0,0.0463]
[1761659520934,0.46365062,115500.0,115490.0,0.0463]
[1761659521237,0.82445062,115500.0,115490.0,0.002]
[1761659521536,0.46365062,115500.0,115490.0,0.0463]
[1761659521744,0.02455778,115500.0,115490.0,0.493695]
[1761659521932,0.02455778,115500.0,115490.0,0.496295]
[1761659523147,0.02455778,115500.0,115490.0,0.493695]
[1761659524144,0.02455778,115500.0,115490.0,0.4071]
[1761659524344,0.43677665,115500.0,115490.0,0.4071]
[1761659524840,0.06908778,115500.0,115490.0,0.493695]
[1761659525047,0.08294778,115500.0,115490.0,0.4071]
[1761659525543,0.06908778,115500.0,115490.0,0.493695]
[1761659525742,0.04601778,115500.0,115490.0,0.493695]
[1761659526134,0.06908778,115500.0,115490.0,0.4071]
[1761659526531,0.06908778,115500.0,115490.0,0.493695]
[1761659527045,0.06908778,115500.0,115490.0,0.4071]
[1761659527640,0.08554778,115500.0,115490.0,0.0463]
[1761659527839,0.43937665,115500.0,115490.0,0.0463]
[1761659528045,0.46262062,115500.0,115490.0,0.0463]
[1761659528244,0.43937665,115500.0,115490.0,0.0463]
[1761659528546,0.46262062,115500.0,115490.0,0.0463]
[1761659529042,0.46262062,115500.0,115490.0,0.132895]
[1761659529341,0.46002062,115500.0,115490.0,0.132895]
[1761659529843,0.06908778,115500.0,115490.0,0.493695]
[1761659530540,0.08276778,115500.0,115490.0,0.0463]
[1761659530745,0.10861175,115500.0,115490.0,0.0463]
[1761659530944,0.10601175,115500.0,115490.0,0.0463]
[1761659531141,0.10601175,115500.0,115490.0,0.1328949]
[1761659531341,0.08276778,115500.0,115490.0,0.1328949]
[1761659531641,0.08276778,115500.0,115490.0,0.0463]
[1761659532637,0.08276778,115500.0,115490.0,0.1328949]
[1761659532838,0.02455778,115500.0,115490.0,0.4936949]
[1761659533950,0.04745778,115500.0,115490.0,0.4936949]
[1761659534149,0.02455778,115500.0,115490.0,0.4936949]
[1761659535751,0.02455778,115500.0,115490.0,0.4962949]
[1761659535954,0.02774397,115520.0,115510.0,0.04334]
[1761659536155,0.02920068,115520.0,115510.0,0.4907199]
[1761659537254,0.05510068,115520.0,115510.0,0.4907199]
[1761659537557,0.03220068,115520.0,115510.0,0.4907199]
[1761659538047,0.05510068,115520.0,115510.0,0.4907199]
[1761659538249,0.03220068,115520.0,115510.0,0.4907199]
[1761659539150,0.03220068,115520.0,115510.0,0.4933199]
[1761659540356,0.03020068,115520.0,115510.0,0.4933199]
[1761659540750,0.0055,115520.0,115510.0,0.4933199]
[1761659540952,0.0045,115520.0,115510.0,0.4933199]
[1761659541255,0.0045,115520.0,115510.0,0.4953199]
[1761659542452,0.04932,115520.0,115510.0,0.40614]
[1761659542652,0.41682887,115520.0,115510.0,0.49272]
[1761659543157,0.1495725,115520.0,115510.0,0.49272]
[1761659543343,0.1358925,115520.0,115510.0,0.49272]
[1761659543543,0.1495725,115520.0,115510.0,0.49272]
[1761659544257,0.50340137,115520.0,115510.0,0.49272]
[1761659545045,0.50340137,115520.0,115510.0,0.4927197]
[1761659546062,0.50340137,115520.0,115510.0,0.40614]
[1761659546363,0.86680137,115520.0,115510.0,0.002]
[1761659546565,0.89156001,115520.0,115510.0,0.002]
[1761659546957,0.86680137,115520.0,115510.0,0.002]
[1761659547157,0.1450872,115500.0,115490.0,0.4907281]
[1761659547353,0.1314072,115500.0,115490.0,0.4907281]
[1761659547665,0.1313997,115510.0,115500.0,0.04334]
[1761659547963,0.48522857,115510.0,115500.0,0.1299273]
[1761659548169,0.48522857,115510.0,115500.0,0.04334]
[1761659548467,0.48522857,115510.0,115500.0,0.1299273]
[1761659548657,0.1313997,115510.0,115500.0,0.4907273]
[1761659548863,0.1313997,115510.0,115500.0,0.5043073]
[1761659549062,0.0865797,115510.0,115500.0,0.5043073]
[1761659549270,0.1323397,115510.0,115500.0,0.5043073]
[1761659549468,0.0865797,115510.0,115500.0,0.5043073]
[1761659550073,0.1090997,115510.0,115500.0,0.5043073]
[1761659550464,0.41412663,115520.0,115510.0,0.04288]
[1761659550665,0.43888779,115520.0,115510.0,0.1294598]
[1761659550865,0.41412663,115520.0,115510.0,0.04288]
[1761659551065,0.41412663,115520.0,115510.0,0.02106]
[1761659551467,0.44149165,115520.0,115510.0,0.02106]
[1761659552171,0.44149165,115520.0,115510.0,0.04288]
[1761659552360,0.43889165,115520.0,115510.0,0.04288]
[1761659552562,0.41412663,115520.0,115510.0,0.04288]
[1761659553268,0.1505176,115520.0,115510.0,0.4899092]
[1761659554165,0.0045,115520.0,115510.0,0.4899092]
[1761659554473,0.02702,115520.0,115510.0,0.4899092]
[1761659554770,0.05026,115520.0,115510.0,0.4899092]
[1761659555066,0.02702,115520.0,115510.0,0.4899092]
[1761659555272,0.0045,115520.0,115510.0,0.4899092]
[1761659558076,0.02702,115520.0,115510.0,0.4899092]
[1761659558874,0.02702,115520.0,115510.0,0.4925092]
[1761659559180,0.06408,115520.0,115510.0,0.4899091]
[1761659559969,0.32768903,115520.0,115510.0,0.4033293]
[1761659560175,0.33028903,115520.0,115510.0,0.0425293]
[1761659560378,0.04576,115510.0,115500.0,0.40368]
[1761659560578,0.31196903,115510.0,115500.0,0.3608]
[1761659560775,0.30936903,115510.0,115500.0,0.40368]
[1761659561182,0.04576,115510.0,115500.0,0.40368]
[1761659561383,0.04576,115510.0,115500.0,0.4902673]
[1761659561685,0.04576,115510.0,115500.0,0.5034973]
[1761659562983,0.04576,115510.0,115500.0,0.41691]
[1761659563483,0.04576,115510.0,115500.0,0.5034973]
[1761659563681,0.04576,115510.0,115500.0,0.41691]
[1761659563982,0.30936903,115510.0,115500.0,0.41691]
[1761659564182,0.04576,115510.0,115500.0,0.5034973]
[1761659564369,0.04576,115510.0,115500.0,0.41691]
[1761659564886,0.30936903,115510.0,115500.0,0.40368]
[1761659565779,0.30936903,115510.0,115500.0,0.04288]
[1761659565971,0.31196903,115510.0,115500.0,0.04288]
[1761659566683,0.31196903,115510.0,115500.0,0.02106]
[1761659567587,0.31196903,115510.0,115500.0,0.04288]
[1761659568086,0.30936903,115510.0,115500.0,0.04288]
[1761659568278,0.04576,115510.0,115500.0,0.05611]
[1761659568784,0.04576,115510.0,115500.0,0.04288]
[1761659569479,0.30936903,115510.0,115500.0,0.04288]
[1761659569672,0.21449529,115510.0,115500.0,0.04288]
[1761659571178,0.21449529,115510.0,115500.0,0.40368]
[1761659571675,0.30940416,115510.0,115500.0,0.40368]
[1761659572179,0.30940416,115510.0,115500.0,0.04288]
[1761659572376,0.05958,115500.0,115490.0,0.40368]
[1761659572579,0.32322416,115500.0,115490.0,0.40368]
[1761659572782,0.32582416,115500.0,115490.0,0.40368]
[1761659574486,0.05958,115490.0,115480.0,0.41229177]
[1761659574691,0.32322416,115490.0,115480.0,0.41229177]
[1761659574883,0.68402416,115490.0,115480.0,0.04288]
[1761659575088,0.68402416,115490.0,115460.0,0.40368]
[1761659575089,0.05958,115470.0,115460.0,0.40368]
[1761659575388,0.32322416,115470.0,115460.0,0.40368]
[1761659575587,0.05958,115470.0,115460.0,0.40368]
[1761659575778,0.32322416,115470.0,115460.0,0.40368]
[1761659575985,0.32322416,115470.0,115460.0,0.41262532]
[1761659577492,0.32322416,115470.0,115460.0,0.41962532]
[1761659578584,0.32322416,115470.0,115460.0,0.50624272]
[1761659578883,0.32322416,115470.0,115460.0,0.41962532]
[1761659579690,0.05958,115470.0,115460.0,0.41962532]
[1761659579994,0.05958,115470.0,115460.0,0.50624272]
[1761659580189,0.32322416,115470.0,115460.0,0.51916272]
[1761659580386,0.32196416,115480.0,115470.0,0.04543]
[1761659580585,0.05832,115480.0,115470.0,0.04543]
[1761659580786,0.32196416,115480.0,115470.0,0.04543]
[1761659581188,0.32196416,115480.0,115470.0,0.02304]
[1761659581580,0.32456416,115480.0,115470.0,0.02304]
[1761659581778,0.32456416,115480.0,115470.0,0.02704]
[1761659582291,0.32196416,115480.0,115470.0,0.04943]
[1761659583402,0.05832,115490.0,115480.0,0.05835]
[1761659583691,0.0445,115490.0,115480.0,0.5057526]
[1761659583896,0.0445,115500.0,115490.0,0.1455651]
[1761659584086,0.0445,115500.0,115490.0,0.5063651]
[1761659584282,0.01301,115510.0,115500.0,0.1096276]
[1761659584587,0.06201,115520.0,115510.0,0.04543]
[1761659584786,0.32565416,115520.0,115510.0,0.40623]
[1761659585192,0.32565416,115520.0,115510.0,0.3608]
[1761659585387,0.0445,115510.0,115500.0,0.39264921]
[1761659585588,0.31014416,115510.0,115500.0,0.41503921]
[1761659585793,0.31274416,115510.0,115500.0,0.41503921]
[1761659587100,0.31074416,115510.0,115500.0,0.41503921]
[1761659587803,0.30814416,115510.0,115500.0,0.41503921]
[1761659587995,0.31074416,115510.0,115500.0,0.00880921]
[1761659588306,0.05525,115500.0,115490.0,0.490025]
[1761659588494,0.04257,115500.0,115490.0,0.490025]
[1761659588898,0.04257,115500.0,115490.0,0.49871531]
[1761659589899,0.04257,115500.0,115490.0,0.49871541]
[1761659590113,0.04257,115500.0,115490.0,0.50071541]
[1761659590294,0.05525,115500.0,115490.0,0.41412031]
[1761659590495,0.05525,115500.0,115490.0,0.50071541]
[1761659591306,0.05525,115500.0,115490.0,0.41412031]
[1761659591696,0.05525,115500.0,115490.0,0.50071541]
[1761659592696,0.05525,115500.0,115490.0,0.41412031]
[1761659593095,0.31889416,115500.0,115490.0,0.41412031]
[1761659593606,0.31889416,115500.0,115490.0,0.40543]
[1761659593998,0.31889416,115500.0,115490.0,0.41420892]
[1761659594197,0.05525,115500.0,115490.0,0.41420892]
[1761659594409,0.31889416,115500.0,115490.0,0.41420892]
[1761659594902,0.32149416,115500.0,115490.0,0.40543]
[1761659595596,0.32149416,115500.0,115490.0,0.38392]
[1761659595798,0.32149416,115500.0,115490.0,0.40543]
[1761659596607,0.05785,115500.0,115490.0,0.40343]
[1761659596803,0.32149416,115500.0,115490.0,0.40343]
[1761659597002,0.31889416,115500.0,115490.0,0.40343]
[1761659597702,0.39274884,115500.0,115490.0,0.40343]
[1761659598509,0.39534884,115500.0,115490.0,0.04263]
[1761659598905,0.05525,115490.0,115480.0,0.41227274]
[1761659599110,0.22399942,115490.0,115480.0,0.41227274]
[1761659599609,0.05525,115490.0,115480.0,0.49887534]
[1761659599810,0.22399942,115490.0,115480.0,0.51207534]
[1761659600011,0.22399942,115490.0,115480.0,0.41227274]
[1761659600403,0.22399942,115490.0,115480.0,0.49887534]
[1761659600602,0.22399942,115490.0,115480.0,0.50087534]
[1761659602610,0.21131942,115490.0,115480.0,0.51407534]
[1761659604613,0.22399942,115490.0,115480.0,0.51407534]
[1761659604906,0.22399942,115490.0,115480.0,0.50087534]
[1761659606203,0.22399942,115490.0,115480.0,0.51407534]
[1761659606801,0.04257,115510.0,115500.0,0.05583]
[1761659607015,0.21131942,115510.0,115500.0,0.58537942]
[1761659607513,0.21131942,115510.0,115500.0,0.41663]
[1761659607908,0.22399942,115510.0,115500.0,0.40343]
[1761659608310,0.22399942,115510.0,115500.0,0.5032174]
[1761659608311,0.21131942,115510.0,115500.0,0.5032174]
[1761659608914,0.21131942,115510.0,115500.0,0.41763]
[1761659609213,0.04257,115510.0,115500.0,0.5042174]
[1761659609402,0.16874942,115510.0,115500.0,0.67296682]
[1761659609610,0.21397942,115510.0,115500.0,0.5042174]
[1761659610414,0.21397942,115510.0,115500.0,0.41763]
[1761659610913,0.21397942,115510.0,115500.0,0.001]
[1761659610914,0.75981884,115510.0,115500.0,0.001]
[1761659611109,0.05892,115500.0,115490.0,0.40537]
[1761659611309,0.39641884,115500.0,115490.0,0.40537]
[1761659611709,0.22768542,115500.0,115490.0,0.40537]
[1761659613517,0.23028542,115500.0,115490.0,0.04457]
[1761659613707,0.05892,115480.0,115470.0,0.40537]
[1761659613908,0.22768542,115480.0,115470.0,0.40537]
[1761659614113,0.23028542,115480.0,115470.0,0.41400478]
[1761659614511,0.04523,115480.0,115470.0,0.41400478]
[1761659614717,0.21399542,115480.0,115470.0,0.40537]
[1761659614921,0.21399542,115480.0,115470.0,0.41037]
[1761659617115,0.21399542,115480.0,115470.0,0.50590119]
[1761659617324,0.22768542,115500.0,115490.0,0.04457]
[1761659617516,0.05892,115480.0,115470.0,0.41929129]
[1761659618120,0.04523,115480.0,115470.0,0.43249129]
[1761659618922,0.04523,115480.0,115470.0,0.42749129]
[1761659619122,0.02247,115480.0,115470.0,0.51410119]
[1761659619319,0.19123542,115480.0,115470.0,0.51410119]
[1761659619521,0.22768542,115490.0,115480.0,0.05749]
[1761659619718,0.22768542,115490.0,115480.0,0.42089]
[1761659619917,0.22768542,115490.0,115480.0,0.41829]
[1761659620822,0.22768542,115490.0,115480.0,0.40537]
[1761659621224,0.22768542,115490.0,115480.0,0.42129]
[1761659622923,0.22768542,115490.0,115480.0,0.5078925]
[1761659623823,0.22768542,115490.0,115480.0,0.42129]
[1761659624024,0.22768542,115490.0,115480.0,0.003]
[1761659624223,0.22768542,115490.0,115480.0,0.01924]
[1761659625027,0.22768542,115490.0,115480.0,0.4666424]
[1761659625028,0.05892,115490.0,115480.0,0.4666424]
[1761659625219,0.05892,115490.0,115480.0,0.38004]
[1761659625424,0.22768542,115490.0,115480.0,0.38004]
[1761659626030,0.22768542,115490.0,115480.0,0.01924]
[1761659626826,0.22768542,115490.0,115480.0,0.1058424]
[1761659627227,0.22768542,115490.0,115480.0,0.01924]
[1761659627830,0.22768542,115490.0,115480.0,0.1058424]
[1761659628026,0.22768542,115490.0,115480.0,0.01924]
[1761659629629,0.23028542,115490.0,115480.0,0.003]
[1761659629932,0.25288153,115490.0,115480.0,0.003]
[1761659630133,0.25288153,115490.0,115480.0,0.01112]
[1761659630334,0.25288153,115490.0,115480.0,0.01924]
[1761659630834,0.25288153,115490.0,115480.0,0.01624]
[1761659631034,0.25288153,115490.0,115480.0,0.01724]
[1761659632733,0.25548153,115490.0,115480.0,0.001]
[1761659632926,0.61628153,115490.0,115480.0,0.001]
[1761659633125,0.59108542,115490.0,115480.0,0.001]
[1761659633433,0.6162818,115490.0,115480.0,0.001]
[1761659633637,0.78504722,115490.0,115480.0,0.001]
[1761659633833,0.6462818,115490.0,115480.0,0.001]
[1761659634040,0.05892,115460.0,115450.0,0.4636643]
[1761659634235,0.22768542,115460.0,115450.0,0.4636643]
[1761659635142,0.05892,115460.0,115450.0,0.47226603]
[1761659635327,0.01369,115470.0,115450.0,0.47226603]
[1761659635328,0.05892,115470.0,115460.0,0.1028573]
[1761659635529,0.05892,115470.0,115460.0,0.4636573]
[1761659635731,0.05892,115470.0,115460.0,0.4662573]
[1761659635939,0.05892,115470.0,115460.0,0.63502272]
[1761659636140,0.05892,115470.0,115460.0,0.4662573]
[1761659637344,0.05892,115470.0,115460.0,0.4712573]
[1761659637641,0.05892,115480.0,115470.0,0.01624]
[1761659637942,0.05892,115480.0,115470.0,0.4662497]
[1761659638332,0.22768542,115480.0,115470.0,0.4662497]
[1761659638528,0.22768542,115480.0,115470.0,0.37964]
[1761659639433,0.22768542,115480.0,115470.0,0.4662498]
[1761659639637,0.22768542,115480.0,115470.0,0.4636498]
[1761659639834,0.22768542,115480.0,115470.0,0.37704]
[1761659640038,0.22768542,115480.0,115470.0,0.37904]
[1761659640439,0.58848542,115480.0,115470.0,0.01012]
[1761659640646,0.22768542,115480.0,115470.0,0.002]
[1761659640843,0.59108542,115480.0,115470.0,0.002]
[1761659642244,0.61631907,115480.0,115470.0,0.002]
[1761659643244,0.22768542,115480.0,115470.0,0.01824]
[1761659643647,0.58848542,115480.0,115470.0,0.01012]
[1761659643846,0.22768542,115480.0,115470.0,0.01824]
[1761659644140,0.61372277,115480.0,115470.0,0.002]
[1761659645444,0.78508819,115480.0,115470.0,0.002]
[1761659646959,0.05725,115450.0,115440.0,0.4636695]
[1761659647149,0.22601542,115450.0,115440.0,0.4636695]
[1761659647339,0.05725,115450.0,115440.0,0.4636695]
[1761659647752,0.05725,115450.0,115440.0,0.47227685]
[1761659648150,0.05725,115450.0,115440.0,0.48127685]
[1761659648355,0.05725,115450.0,115440.0,0.99464735]
[1761659648654,0.05725,115450.0,115440.0,0.39464735]
[1761659649449,0.05725,115450.0,115440.0,0.48127965]
[1761659649643,0.22601542,115450.0,115440.0,0.48227965]
[1761659650554,0.22601542,115450.0,115440.0,0.39564735]
[1761659650863,0.58681542,115450.0,115440.0,0.03484735]
[1761659651052,0.75818084,115450.0,115440.0,0.01]
[1761659651248,0.42065,115450.0,115440.0,0.01]
[1761659651559,0.78339192,115450.0,115440.0,0.01]
[1761659651758,0.75818084,115450.0,115440.0,0.01]
[1761659652057,0.78349236,115450.0,115440.0,0.01]
[1761659652256,0.75818084,115450.0,115440.0,0.01]
[1761659653961,0.58681542,115450.0,115440.0,0.01]
[1761659654860,0.58941542,115450.0,115440.0,0.01]
[1761659655157,0.80346211,115450.0,115440.0,0.01]
[1761659655363,0.05758,115440.0,115430.0,9.434e-05]
[1761659655560,0.75851084,115440.0,115430.0,9.434e-05]
[1761659655863,1.77851084,115440.0,115430.0,9.434e-05]
[1761659656456,1.77851084,115440.0,115430.0,0.00109434]
[1761659656858,1.77851084,115440.0,115430.0,0.00709434]
[1761659657361,1.80377204,115440.0,115430.0,0.00709434]
[1761659658355,1.85377204,115440.0,115430.0,0.00709434]
[1761659659063,1.4636412,115440.0,115430.0,0.00709434]
[1761659659262,1.80117204,115440.0,115430.0,0.00709434]
[1761659659763,1.80377204,115440.0,115430.0,0.00709434]
[1761659661160,1.82710735,115440.0,115430.0,0.00709434]
[1761659661358,0.05758,115420.0,115410.0,0.00433219]
[1761659661560,0.58714542,115420.0,115410.0,0.00433219]
[1761659661863,0.58974542,115420.0,115410.0,0.00433219]
[1761659662253,0.58983976,115420.0,115410.0,0.00433219]
[1761659662455,0.58723976,115420.0,115410.0,0.00433219]
[1761659663363,0.75860518,115420.0,115410.0,0.00433219]
[1761659664057,0.77060518,115420.0,115410.0,0.00433219]
[1761659664264,0.79584331,115420.0,115410.0,0.00423219]
[1761659664464,0.79324331,115420.0,115410.0,0.00423219]
[1761659664658,0.79584331,115420.0,115410.0,0.00423219]
[1761659664859,0.79484331,115420.0,115410.0,0.00423219]
[1761659665055,0.05758,115400.0,115390.0,0.3608]
[1761659665266,0.22634542,115400.0,115390.0,0.36892]
[1761659665466,0.22634542,115400.0,115390.0,0.47245782]
[1761659665660,0.22634542,115400.0,115390.0,0.38578832]
[1761659665869,0.22634542,115400.0,115390.0,0.02498832]
[1761659666368,0.22634542,115400.0,115390.0,0.11165782]
[1761659667164,0.06658,115400.0,115390.0,0.02498832]
[1761659667555,0.23534542,115400.0,115390.0,0.47245782]
[1761659667760,0.23534542,115400.0,115390.0,0.38578832]
[1761659668259,0.23534542,115400.0,115390.0,0.47245782]
[1761659668476,0.06658,115400.0,115390.0,0.47505782]
[1761659669564,0.009,115400.0,115390.0,0.64382324]
[1761659669763,0.009,115400.0,115390.0,1.24382324]
[1761659669764,0.0064,115400.0,115390.0,1.24382324]
[1761659670864,0.01276434,115420.0,115410.0,0.1028944]
[1761659671064,9.434e-05,115420.0,115410.0,0.63245982]
[1761659671264,9.434e-05,115420.0,115410.0,1.23505982]
[1761659671466,9.434e-05,115420.0,115410.0,1.0662944]
[1761659671662,9.434e-05,115420.0,115410.0,1.4270944]
[1761659671867,9.434e-05,115420.0,115410.0,1.09104104]
[1761659672267,9.434e-05,115420.0,115410.0,0.8270944]
[1761659672870,9.434e-05,115420.0,115410.0,1.09104104]
[1761659673267,0.00909434,115420.0,115410.0,1.09104104]
[1761659673867,0.01329,115440.0,115430.0,0.1028794]
[1761659674068,0.03598,115440.0,115430.0,0.4636794]
[1761659674268,0.05757,115440.0,115430.0,0.4662794]
[1761659675074,0.05757,115440.0,115430.0,0.4662783]
[1761659675271,0.04428,115430.0,115420.0,0.36892]
[1761659675469,0.04428,115430.0,115410.0,0.37704]
[1761659675470,0.06017,115420.0,115410.0,0.37704]
[1761659675771,0.32411664,115420.0,115410.0,0.3608]
[1761659675973,0.05757,115410.0,115400.0,0.00812]
[1761659676164,0.68491664,115410.0,115400.0,0.01624]
[1761659676364,0.68491664,115410.0,115390.0,0.45621422]
[1761659676365,0.04428,115400.0,115390.0,0.00812]
[1761659676564,0.04428,115390.0,115380.0,0.4637143]
[1761659676760,0.04688,115390.0,115380.0,0.4637143]
[1761659677971,0.04428,115390.0,115380.0,0.4637143]
[1761659678170,0.04688,115390.0,115380.0,0.4637143]
[1761659678576,0.04428,115390.0,115380.0,0.4637143]
[1761659678978,0.04428,115390.0,115380.0,0.4647143]
[1761659679679,0.04428,115390.0,115380.0,0.47339848]
[1761659680178,0.04428,115400.0,115390.0,0.0866688]
[1761659680480,0.07230478,115400.0,115390.0,0.4637088]
[1761659680679,0.06970478,115400.0,115390.0,0.4663088]
[1761659680880,0.06970478,115400.0,115390.0,0.4637088]
[1761659681578,0.06970478,115400.0,115390.0,0.37704]
[1761659681781,0.07170478,115400.0,115390.0,0.4637088]
[1761659683176,0.43250478,115400.0,115370.0,0.18815511]
[1761659683378,0.3608,115390.0,115380.0,0.0866764]
[1761659683577,0.3608,115390.0,115380.0,0.0892764]
[1761659684082,0.3608,115390.0,115380.0,0.35322304]
[1761659684281,0.3628,115400.0,115390.0,0.086669]
[1761659684490,0.3628,115400.0,115390.0,0.35321564]
[1761659684875,0.3608,115400.0,115390.0,0.086669]
[1761659685187,0.3628,115400.0,115390.0,0.089269]
[1761659685373,0.38549,115400.0,115390.0,0.086669]
[1761659685879,0.4937416,115400.0,115390.0,0.086669]
[1761659686082,0.76028824,115400.0,115390.0,0.086669]
[1761659687079,0.75828824,115400.0,115390.0,0.086669]
[1761659687286,0.76028824,115400.0,115390.0,0.086669]
[1761659687980,0.1309491,115390.0,115380.0,0.09529488]
[1761659688282,0.4943491,115390.0,115380.0,0.0866742]